lending/lending_fUSD_20260306
["ID","MTS","AMOUNT","RATE_DAILY","PERIOD"]
[407852031,1772835042357,-698.45698217,0.0001999,2]
[407852032,1772835042366,-151.0,0.00019997,2]
[407852033,1772835042378,-300.0,0.00019999,2]
[407852034,1772835042387,-292.7,0.0002,7]
[407852035,1772835042396,-7878297.08297352,0.0002,2]
[407852036,1772835042634,-1625.73,0.00016913,7]
[407852037,1772835042643,-588.1559566,0.0002,2]
[407852038,1772835042654,-1386.70499995,0.0002,2]
[407852039,1772835042701,-2351.63329321,0.00013373,2]
[407852040,1772835042710,-1219.3,0.0001742,7]
[407852041,1772835042719,-2553984.22229695,0.0002,2]
[407852044,1772835043360,-812.87,0.00017927,7]
[407852045,1772835043371,-638.24449336,0.0002,2]
[407852046,1772835043385,-722.8955016,0.0002,2]
[407852047,1772835043396,-3038.3,0.0002,2]
[407852052,1772835046081,-510.0310867,0.00016637,2]
[407852086,1772835236309,-700.0,0.000127,4]
[407852087,1772835236338,-2500.0,0.000127,4]
[407852088,1772835236402,-3478.5269856,0.00012728,2]
[407852089,1772835236475,-1521.4730144,0.00012728,2]
[407852090,1772835236503,-250.0,0.00012728,2]
[407852091,1772835236531,-158.44,0.00012757,2]
[407852092,1772835395514,-1200.0,0.00012799,2]
[407852093,1772835395550,-300.0,0.00012799,2]
[407852094,1772835395581,-1400.0,0.000128,4]
[407852095,1772835395657,-4200.01,0.000128,4]
[407852096,1772835396012,-899.99,0.000128,4]
[407852097,1772835396047,-256.89064142,0.00012897,2]
[407852098,1772835396077,-2686.24871716,0.00012897,2]
[407852099,1772835396127,-2313.75128284,0.00012897,2]
[407852100,1772835400941,-2200.0,0.000129,4]
[407852101,1772835400984,-5600.01,0.000129,4]
[407852102,1772835401048,-2099.99,0.000129,4]
[407852103,1772835401077,-201.0,0.00013,2]
[407852104,1772835401106,-151.07421733,0.000132,2]
[407852105,1772835401135,-153.65690199,0.000132,2]
[407852106,1772835401164,-153.01630814,0.000132,2]
[407852107,1772835401194,-153.45819619,0.000132,2]
[407852108,1772835401222,-150.0,0.0001323,2]
[407852109,1772835401357,-3875.6187527,0.00013231,2]
[407852110,1772835419967,500.0,0.000126,2]
[407852111,1772835439110,273.43627,0.00012794,2]
[407852112,1772835533847,156.69,0.000129,2]
[407852117,1772835660106,4000.0,0.00012464,2]
[407852118,1772835660309,4000.0,0.00012775,2]
[407852119,1772835738833,521.68330113,0.0001142,2]
[407852120,1772835787873,1600.0,0.00012398,2]
[407852121,1772835804516,7878.32669887,0.00012382,2]
[407852123,1772835939119,-1305.58598011,0.00012336,2]
[407852125,1772835998050,-2275.08401989,0.00012336,2]
[407852126,1772836021807,2973.0,0.000123,2]
[407852127,1772836039958,500.0,0.0001142,2]
[407852128,1772836039997,500.0,0.0001142,2]
[407852129,1772836045100,-305.05958288,0.00012351,2]
[407852130,1772836045121,-500.0,0.00012358,2]
[407852131,1772836045143,-150.0,0.00012366,2]
[407852132,1772836045164,-3934.74330113,0.00012382,2]
[407852133,1772836045185,-2600.0,0.000126,4]
[407852134,1772836045206,-269.62516553,0.00012654,2]
[407852135,1772836046040,500.0,0.0001142,2]
[407852136,1772836046530,500.0,8e-05,2]
[407852141,1772836148086,-271.13107113,0.00012654,2]
[407852142,1772836148114,-756.53632487,0.000127,4]
[407852143,1772836149581,210.33,0.00012297,2]
[407852144,1772836158183,-3148.00930479,0.000127,4]
[407852145,1772836171105,-1031.2173042,0.000127,4]
[407852148,1772836231489,-264.23706614,0.000127,4]
[407852149,1772836231499,-74.79433385,0.00012787,2]
[407852150,1772836231510,-180.20566615,0.00012787,2]
[407852151,1772836231520,-683.85640052,0.00012787,2]
[407852153,1772836231532,-424.84285358,0.00012787,2]
[407852155,1772836231543,-243.33839313,0.00012787,2]
[407852157,1772836231553,-900.0,0.00012787,2]
[407852159,1772836231562,-1200.0,0.00012799,2]
[407852161,1772836231571,-7900.0,0.000128,4]
[407852163,1772836231586,-300.0,0.00012899,2]
[407852165,1772836231595,-750.0,0.00012899,14]
[407852167,1772836231604,-300.0,0.00012899,2]
[407852169,1772836231614,-10500.0,0.000129,4]
[407852171,1772836231625,-2701.65027443,0.00013087,2]
[407852172,1772836231637,-1298.34972557,0.00013087,2]
[407852173,1772836231647,-14171.60459636,0.00013129,2]
[407852174,1772836231659,-706.82415317,0.00013129,2]
[407852175,1772836231674,-267.37735194,0.00013129,2]
[407852176,1772836231685,-1309.68764366,0.00013129,2]
[407852177,1772836231695,-1700.23783598,0.00013129,2]
[407852178,1772836231707,-856.52330817,0.00013129,2]
[407852179,1772836231718,-700.36150344,0.00013129,2]
[407852180,1772836231733,-343.29292514,0.00013129,2]
[407852181,1772836231759,-326.03172292,0.00013129,2]
[407852182,1772836231842,-827.08473548,0.00013129,2]
[407852183,1772836231854,-633.20014857,0.00013129,2]
[407852184,1772836231865,-362466.82229791,0.00013129,2]
[407852185,1772836231875,-3338.52137404,0.00013129,2]
[407852186,1772836231887,-19896.71854804,0.00013129,2]
[407852187,1772836231898,-368305.82464358,0.00013129,2]
[407852188,1772836231910,-1254.41808677,0.00013129,2]
[407852189,1772836231921,-2714.78175118,0.00013129,2]
[407852190,1772836231932,-5952.13234808,0.00013129,2]
[407852193,1772836237390,-339.37348643,0.00013128,2]
[407852194,1772836237400,-360.69393159,0.00013128,2]
[407852195,1772836237409,-500.0,0.00013128,2]
[407852196,1772836237418,-500.0,0.00013128,2]
[407852197,1772836237427,-500.0,0.00013128,2]
[407852198,1772836237436,-496.85193729,0.00013128,2]
[407852199,1772836237445,-801.69397509,0.00013128,2]
[407852200,1772836237455,-801.69397509,0.00013128,2]
[407852201,1772836237463,-801.69397509,0.00013128,2]
[407852202,1772836237473,-801.69397509,0.00013128,2]
[407852203,1772836237482,-801.69397509,0.00013128,2]
[407852204,1772836237492,-801.69397509,0.00013128,2]
[407852205,1772836237501,-801.69397509,0.00013128,2]
[407852206,1772836237511,-801.69397509,0.00013128,2]
[407852207,1772836237520,-801.69397509,0.00013128,2]
[407852208,1772836237530,-801.69397509,0.00013128,2]
[407852209,1772836237539,-801.69397509,0.00013128,2]
[407852210,1772836237548,-801.69397509,0.00013128,2]
[407852211,1772836237558,-801.69397509,0.00013128,2]
[407852212,1772836237567,-801.69397509,0.00013128,2]
[407852213,1772836237577,-801.69397509,0.00013128,2]
[407852214,1772836237586,-801.69397509,0.00013128,2]
[407852215,1772836237595,-801.69397509,0.00013128,2]
[407852216,1772836237605,-801.69397509,0.00013128,2]
[407852217,1772836237615,-801.69397509,0.00013128,2]
[407852219,1772836237624,-801.69397509,0.00013128,2]
[407852221,1772836237634,-801.69397509,0.00013128,2]
[407852223,1772836237643,-801.69397509,0.00013128,2]
[407852225,1772836237652,-801.69397509,0.00013128,2]
[407852226,1772836237661,-801.69397509,0.00013128,2]
[407852227,1772836237674,-801.69397509,0.00013128,2]
[407852228,1772836237683,-801.69397509,0.00013128,2]
[407852229,1772836237692,-801.69397509,0.00013128,2]
[407852230,1772836237701,-801.69397509,0.00013128,2]
[407852231,1772836237711,-801.69397509,0.00013128,2]
[407852232,1772836237720,-801.69397509,0.00013128,2]
[407852233,1772836237729,-801.69397509,0.00013128,2]
[407852234,1772836237739,-801.69397509,0.00013128,2]
[407852235,1772836237749,-801.69397509,0.00013128,2]
[407852236,1772836237758,-801.69397509,0.00013128,2]
[407852237,1772836237767,-801.69397509,0.00013128,2]
[407852238,1772836237776,-801.69397509,0.00013128,2]
[407852239,1772836237786,-801.69397509,0.00013128,2]
[407852240,1772836237795,-801.69397509,0.00013128,2]
[407852241,1772836237804,-801.69397509,0.00013128,2]
[407852242,1772836237813,-801.69397509,0.00013128,2]
[407852243,1772836237823,-801.69397509,0.00013128,2]
[407852244,1772836237832,-801.69397509,0.00013128,2]
[407852245,1772836237841,-801.69397509,0.00013128,2]
[407852246,1772836237850,-801.69397509,0.00013128,2]
[407852247,1772836237859,-801.69397509,0.00013128,2]
[407852248,1772836237868,-801.69397509,0.00013128,2]
[407852249,1772836237878,-801.69397509,0.00013128,2]
[407852250,1772836237888,-801.69397509,0.00013128,2]
[407852251,1772836237897,-1714228.55502557,0.00013129,2]
[407852252,1772836237906,-11608.74657989,0.0001313,2]
[407852253,1772836237915,-1855.53147924,0.0001313,2]
[407852254,1772836237924,-427.5242,0.00013131,2]
[407852255,1772836237934,-1064.0361,0.00013131,2]
[407852256,1772836237943,-200.0,0.000132,2]
[407852257,1772836237952,-1934.0,0.000132,2]
[407852258,1772836237961,-386.0,0.000132,2]
[407852259,1772836237971,-2500.0,0.00013218,2]
[407852261,1772836237981,-1000.0,0.00013219,2]
[407852263,1772836237990,-12627.85875555,0.0001322,2]
[407852265,1772836237999,-150.0,0.00013227,2]
[407852267,1772836238009,-251.0,0.00013227,2]
[407852269,1772836238018,-308.0,0.00013227,2]
[407852271,1772836238027,-9999.99,0.00013228,2]
[407852273,1772836238037,-14676.68,0.00013229,2]
[407852274,1772836238047,-9999.99,0.00013229,2]
[407852275,1772836238056,-608.86,0.00013229,2]
[407852276,1772836238065,-2247.79,0.0001323,2]
[407852277,1772836238075,-999.99,0.0001323,2]
[407852278,1772836238084,-23868.35,0.0001323,2]
[407852279,1772836238093,-978.79,0.0001323,2]
[407852280,1772836238103,-516.46,0.0001323,2]
[407852281,1772836238112,-150.99,0.0001323,2]
[407852282,1772836238123,-9999.99,0.0001323,2]
[407852283,1772836238132,-299.99,0.0001323,2]
[407852284,1772836238142,-45280.47,0.0001323,2]
[407852285,1772836238151,-576.12,0.0001323,2]
[407852286,1772836238161,-150.99,0.0001323,2]
[407852287,1772836238170,-9999.99,0.0001323,2]
[407852288,1772836238179,-9999.99,0.0001323,2]
[407852289,1772836238189,-271.62202627,0.00013231,2]
[407852290,1772836238199,-3268.729,0.00013231,2]
[407852291,1772836238209,-222.696,0.00013231,2]
[407852292,1772836238220,-421.8946451,0.00013231,2]
[407852293,1772836238229,-1567.7555288,0.00013231,2]
[407852294,1772836238239,-226.47003982,0.00013231,2]
[407852295,1772836238248,-157.40983265,0.00013231,2]
[407852296,1772836238258,-1454.0,0.00013253,2]
[407852297,1772836238267,-334.0,0.00013253,2]
[407852298,1772836238278,-500.0,0.00013273,2]
[407852299,1772836238287,-500.11286481,0.00013273,2]
[407852300,1772836238296,-500.12727946,0.00013273,2]
[407852301,1772836238305,-500.11732428,0.00013273,2]
[407852302,1772836238315,-500.0,0.00013273,2]
[407852303,1772836238324,-500.0,0.00013273,2]
[407852304,1772836238334,-500.0,0.00013273,2]
[407852305,1772836238343,-501.11845623,0.00013273,2]
[407852306,1772836238353,-500.0,0.00013273,2]
[407852307,1772836238363,-500.0,0.00013273,2]
[407852308,1772836238373,-500.0,0.00013273,2]
[407852309,1772836238383,-499.0,0.00013303,2]
[407852310,1772836238392,-665.0,0.00013315,2]
[407852311,1772836238401,-34103.0,0.00013315,2]
[407852312,1772836238410,-3084.0,0.00013315,2]
[407852313,1772836238420,-69126.34470485,0.00013319,2]
[407852314,1772836238429,-652.90378303,0.0001332,2]
[407852315,1772836238438,-500.0,0.00013322,2]
[407852316,1772836238447,-171.02061742,0.00013322,2]
[407852317,1772836238456,-200.0,0.00013322,2]
[407852318,1772836238465,-500.0,0.00013322,2]
[407852319,1772836238475,-500.0,0.00013322,2]
[407852320,1772836238484,-500.0,0.00013322,2]
[407852321,1772836238494,-500.0,0.00013322,2]
[407852322,1772836238503,-500.0,0.00013322,2]
[407852323,1772836238512,-500.0,0.00013322,2]
[407852324,1772836238522,-500.0,0.00013322,2]
[407852325,1772836238531,-500.0,0.00013322,2]
[407852326,1772836238540,-500.0,0.00013322,2]
[407852327,1772836238549,-151.0,0.00013322,2]
[407852328,1772836238559,-500.0,0.00013322,2]
[407852329,1772836238568,-500.0,0.00013322,2]
[407852330,1772836238577,-151.0,0.00013322,2]
[407852331,1772836238586,-500.0,0.00013322,2]
[407852332,1772836238596,-500.0,0.00013322,2]
[407852333,1772836238605,-151.0,0.00013322,2]
[407852334,1772836238614,-500.0,0.00013322,2]
[407852335,1772836238624,-151.0,0.00013322,2]
[407852336,1772836238633,-500.0,0.00013322,2]
[407852337,1772836238642,-151.0,0.00013322,2]
[407852338,1772836238651,-500.0,0.00013322,2]
[407852339,1772836238660,-151.0,0.00013322,2]
[407852340,1772836238674,-500.0,0.00013322,2]
[407852341,1772836238683,-151.0,0.00013322,2]
[407852342,1772836238693,-500.0,0.00013322,2]
[407852343,1772836238702,-500.0,0.00013322,2]
[407852344,1772836238713,-151.0,0.00013322,2]
[407852345,1772836238722,-500.0,0.00013322,2]
[407852346,1772836238732,-151.0,0.00013322,2]
[407852347,1772836238741,-500.0,0.00013322,2]
[407852348,1772836238751,-151.0,0.00013322,2]
[407852349,1772836238761,-500.0,0.00013322,2]
[407852350,1772836238770,-151.0,0.00013322,2]
[407852351,1772836238779,-151.0,0.00013322,2]
[407852352,1772836238788,-151.0,0.00013322,2]
[407852353,1772836238797,-151.0,0.00013322,2]
[407852354,1772836238818,-151.0,0.00013322,2]
[407852355,1772836238830,-265.77000524,0.00013322,2]
[407852356,1772836238839,-254.58946883,0.00013322,2]
[407852357,1772836238847,-151.0,0.00013322,2]
[407852358,1772836238856,-151.0,0.00013322,2]
[407852359,1772836238865,-151.0,0.00013322,2]
[407852360,1772836238874,-151.0,0.00013322,2]
[407852361,1772836238883,-151.0,0.00013322,2]
[407852362,1772836238892,-151.0,0.00013322,2]
[407852363,1772836238901,-151.0,0.00013322,2]
[407852364,1772836238911,-151.0,0.00013322,2]
[407852365,1772836238919,-151.0,0.00013322,2]
[407852366,1772836238928,-151.0,0.00013322,2]
[407852367,1772836238937,-151.0,0.00013322,2]
[407852368,1772836238945,-151.0,0.00013327,2]
[407852369,1772836238955,-1964.41016623,0.00013329,3]
[407852370,1772836238964,-1233.0,0.00013329,2]
[407852371,1772836238973,-1000.0,0.00013331,2]
[407852372,1772836238982,-629479.2189,0.00013331,2]
[407852373,1772836238991,-1417.0,0.00013345,2]
[407852374,1772836239000,-500.07952757,0.00013373,2]
[407852375,1772836239009,-164.89685656,0.00013373,2]
[407852376,1772836239018,-637.7067289,0.00013373,2]
[407852377,1772836239027,-500.0,0.00013373,2]
[407852378,1772836239036,-500.0,0.00013373,2]
[407852379,1772836239045,-167.13661669,0.00013373,2]
[407852380,1772836239054,-219.32528239,0.00013373,2]
[407852381,1772836239063,-501.86035421,0.00013373,2]
[407852382,1772836239072,-500.0,0.00013373,2]
[407852383,1772836239082,-167.08473967,0.00013373,2]
[407852384,1772836239091,-407.46862187,0.00013373,2]
[407852385,1772836239100,-240.12890457,0.00013373,2]
[407852386,1772836239109,-500.0,0.00013373,2]
[407852387,1772836239118,-167.11665281,0.00013373,2]
[407852388,1772836239127,-500.0,0.00013373,2]
[407852389,1772836239137,-500.0,0.00013373,2]
[407852390,1772836239147,-500.0,0.00013373,2]
[407852391,1772836239156,-500.0,0.00013373,2]
[407852392,1772836239169,-501.14462458,0.00013373,2]
[407852393,1772836239182,-500.38582798,0.00013373,2]
[407852394,1772836239195,-500.0,0.00013373,2]
[407852395,1772836239208,-164.71106665,0.00013373,2]
[407852396,1772836239220,-500.0,0.00013373,2]
[407852397,1772836239230,-500.0,0.00013373,2]
[407852398,1772836239241,-500.0,0.00013373,2]
[407852399,1772836239253,-500.0,0.00013373,2]
[407852400,1772836239267,-4000.0,0.00013399,2]
[407852401,1772836239279,-150.4090837,0.000134,2]
[407852402,1772836239291,-151.14967798,0.000134,2]
[407852403,1772836239304,-503.0,0.0001342,2]
[407852404,1772836239315,-652.90378303,0.00013422,2]
[407852405,1772836239327,-80235.86215378,0.00013432,2]
[407852406,1772836239340,-589.03508066,0.00013473,2]
[407852407,1772836239351,-500.0,0.00013473,2]
[407852408,1772836239362,-500.0,0.00013473,2]
[407852409,1772836239373,-573.58002767,0.00013473,2]
[407852410,1772836239383,-576.12,0.00013504,2]
[407852411,1772836239393,-500.0,0.00013547,2]
[407852412,1772836239405,-151.0,0.00013566,2]
[407852413,1772836239417,-193.0,0.00013569,2]
[407852414,1772836239429,-250.0,0.00013569,2]
[407852415,1772836239440,-5000.0,0.00013569,2]
[407852416,1772836239452,-500.0,0.00013586,2]
[407852417,1772836239464,-300.0,0.00013586,2]
[407852418,1772836239475,-3506.21977171,0.00013586,2]
[407852419,1772836239487,-468.0,0.00013642,2]
[407852420,1772836239498,-318.0,0.00013669,2]
[407852421,1772836239510,-500.0,0.00013698,2]
[407852422,1772836239521,-500.0,0.00013698,2]
[407852423,1772836239533,-500.0,0.00013698,2]
[407852424,1772836239545,-500.0,0.00013698,2]
[407852425,1772836239556,-500.0,0.00013698,2]
[407852426,1772836239568,-500.0,0.00013698,2]
[407852427,1772836239580,-500.0,0.00013698,2]
[407852428,1772836239591,-500.0,0.00013698,2]
[407852430,1772836239604,-500.0,0.00013698,2]
[407852431,1772836239617,-500.0,0.00013698,2]
[407852432,1772836239628,-500.0,0.00013698,2]
[407852433,1772836239639,-389.89566096,0.00013698,2]
[407852434,1772836239652,-500.0,0.00013698,2]
[407852435,1772836239667,-500.0,0.00013698,2]
[407852436,1772836239681,-500.0,0.00013698,2]
[407852437,1772836239694,-500.0,0.00013698,2]
[407852438,1772836239707,-500.0,0.00013698,2]
[407852439,1772836239721,-500.0,0.00013698,2]
[407852440,1772836239732,-500.0,0.00013698,2]
[407852441,1772836239744,-500.0,0.00013698,2]
[407852442,1772836239754,-500.0,0.00013698,2]
[407852443,1772836239764,-500.0,0.00013698,2]
[407852444,1772836239776,-500.0,0.00013698,2]
[407852445,1772836239791,-500.0,0.00013698,2]
[407852446,1772836239805,-500.0,0.00013698,2]
[407852447,1772836239814,-500.0,0.00013698,2]
[407852448,1772836239825,-500.0,0.00013698,2]
[407852449,1772836239836,-500.0,0.00013698,2]
[407852450,1772836239847,-500.0,0.00013698,2]
[407852451,1772836239858,-500.0,0.00013698,2]
[407852452,1772836239869,-500.00608588,0.00013698,2]
[407852453,1772836239880,-500.0,0.00013698,2]
[407852454,1772836239893,-500.0,0.00013698,2]
[407852455,1772836239903,-500.0,0.00013698,2]
[407852456,1772836239913,-500.0,0.00013698,2]
[407852457,1772836239923,-500.0,0.00013698,2]
[407852458,1772836239933,-500.0,0.00013698,2]
[407852459,1772836239943,-500.0,0.00013698,2]
[407852460,1772836239955,-500.0,0.00013698,2]
[407852461,1772836239965,-500.0,0.00013698,2]
[407852462,1772836239976,-500.0,0.00013698,2]
[407852463,1772836239987,-500.0,0.00013698,2]
[407852464,1772836239997,-500.0,0.00013698,2]
[407852465,1772836240007,-500.0,0.00013698,2]
[407852466,1772836240018,-637.44948244,0.00013698,2]
[407852467,1772836240029,-500.0,0.00013698,2]
[407852468,1772836240040,-500.0,0.00013698,2]
[407852469,1772836240051,-500.0,0.00013698,2]
[407852470,1772836240063,-500.0,0.00013698,2]
[407852471,1772836240074,-500.0,0.00013698,2]
[407852472,1772836240087,-500.0,0.00013698,2]
[407852473,1772836240098,-500.0,0.00013698,2]
[407852474,1772836240108,-500.0,0.00013698,2]
[407852475,1772836240119,-500.0,0.00013698,2]
[407852476,1772836240130,-500.0,0.00013698,2]
[407852477,1772836240141,-500.0,0.00013698,2]
[407852478,1772836240151,-500.0,0.00013698,2]
[407852479,1772836240161,-500.0,0.00013698,2]
[407852480,1772836240172,-515.39068237,0.00013698,2]
[407852481,1772836240183,-500.0,0.00013698,2]
[407852482,1772836240193,-500.0,0.00013698,2]
[407852483,1772836240204,-500.0,0.00013698,2]
[407852484,1772836240215,-503.7310091,0.00013698,2]
[407852485,1772836240226,-500.0,0.00013698,2]
[407852486,1772836240236,-500.0,0.00013698,2]
[407852487,1772836240247,-431.19033015,0.00013698,2]
[407852488,1772836240258,-500.0,0.00013698,2]
[407852489,1772836240268,-500.0,0.00013698,2]
[407852490,1772836240279,-500.0,0.00013698,2]
[407852491,1772836240289,-500.0,0.00013698,2]
[407852492,1772836240300,-500.0,0.00013698,2]
[407852493,1772836240311,-500.0,0.00013698,2]
[407852494,1772836240322,-500.0,0.00013698,2]
[407852495,1772836240332,-500.0,0.00013698,2]
[407852496,1772836240343,-500.0,0.00013698,2]
[407852497,1772836240353,-500.0,0.00013698,2]
[407852498,1772836240363,-500.0,0.00013698,2]
[407852499,1772836240374,-500.0,0.00013698,2]
[407852500,1772836240384,-500.0,0.00013698,2]
[407852501,1772836240394,-500.0,0.00013698,2]
[407852502,1772836240405,-500.0,0.00013698,2]
[407852503,1772836240415,-500.0,0.00013698,2]
[407852504,1772836240426,-551.6181156,0.00013698,2]
[407852505,1772836240436,-500.0,0.00013699,2]
[407852506,1772836240446,-500.0,0.00013699,2]
[407852507,1772836240456,-182.43846544,0.00013699,2]
[407852508,1772836240467,-446.12402339,0.00013699,2]
[407852509,1772836240478,-500.0,0.00013699,2]
[407852510,1772836240488,-500.0,0.00013699,2]
[407852511,1772836240498,-500.0,0.00013699,2]
[407852512,1772836240509,-500.0,0.00013699,2]
[407852513,1772836240519,-500.0,0.00013699,2]
[407852514,1772836240530,-500.0,0.00013699,2]
[407852515,1772836240540,-500.0,0.00013699,2]
[407852516,1772836240550,-500.0,0.00013699,2]
[407852517,1772836240560,-500.0,0.00013699,2]
[407852518,1772836240571,-500.0,0.00013699,2]
[407852519,1772836240581,-500.0,0.00013699,2]
[407852520,1772836240591,-500.0,0.00013699,2]
[407852521,1772836240602,-500.0,0.00013699,2]
[407852522,1772836240612,-500.0,0.00013699,2]
[407852523,1772836240623,-238.63552118,0.00013699,2]
[407852524,1772836240633,-603.56,0.000137,2]
[407852525,1772836240644,-603.56,0.000137,2]
[407852526,1772836240655,-603.56,0.000137,2]
[407852527,1772836240667,-603.56,0.000137,2]
[407852528,1772836240677,-603.56,0.000137,2]
[407852529,1772836240687,-4000.0,0.0001371,2]
[407852530,1772836240697,-567.00612648,0.00013716,2]
[407852531,1772836240709,-576.12,0.00013778,2]
[407852532,1772836240719,-500.0,0.00013821,2]
[407852533,1772836240730,-1000.0,0.00013821,2]
[407852534,1772836240743,-1000.0,0.00013821,2]
[407852535,1772836240753,-372.24433971,0.00013821,2]
[407852536,1772836240764,-1000.0,0.00013821,2]
[407852537,1772836240774,-1000.0,0.00013821,2]
[407852538,1772836240784,-200.0,0.0001387,2]
[407852539,1772836240795,-11608.74657983,0.00013882,2]
[407852540,1772836240806,-150.0,0.0001392,2]
[407852541,1772836240816,-3375.87322515,0.0001392,2]
[407852542,1772836240826,-300.0,0.0001392,2]
[407852543,1772836240837,-250.0,0.0001392,2]
[407852544,1772836240847,-600.0,0.0001392,2]
[407852545,1772836240858,-600.0,0.0001392,2]
[407852546,1772836240868,-600.0,0.0001392,2]
[407852547,1772836240879,-600.0,0.0001392,2]
[407852548,1772836240889,-644.93038635,0.0001392,2]
[407852549,1772836240899,-300.0,0.0001392,2]
[407852550,1772836240910,-300.0,0.0001392,2]
[407852551,1772836240920,-300.0,0.0001392,2]
[407852552,1772836240931,-300.0,0.0001392,2]
[407852553,1772836240941,-404.7939027,0.0001392,2]
[407852554,1772836240952,-250.0,0.0001392,2]
[407852555,1772836240962,-1002.06786579,0.00013921,2]
[407852556,1772836240973,-1000.0,0.00013921,2]
[407852557,1772836240983,-500.0,0.00013921,2]
[407852558,1772836240993,-500.0,0.00013921,2]
[407852559,1772836241004,-927.79118707,0.00013921,2]
[407852560,1772836241014,-726.88022743,0.00013921,2]
[407852561,1772836241024,-1000.0,0.00013921,2]
[407852562,1772836241034,-502.26276919,0.00013921,2]
[407852563,1772836241045,-1000.0,0.00013921,2]
[407852564,1772836241055,-1000.0,0.00013921,2]
[407852565,1772836241065,-1000.0,0.00013921,2]
[407852566,1772836241077,-1000.0,0.00013921,2]
[407852567,1772836241087,-1600.0,0.00013948,2]
[407852568,1772836241098,-12627.85875546,0.00013962,2]
[407852569,1772836241108,-1000.0,0.00014021,2]
[407852570,1772836241118,-576.12,0.00014052,2]
[407852571,1772836241128,-1680.0,0.00014079,2]
[407852572,1772836241138,-607.50528381,0.00014095,2]
[407852573,1772836241148,-500.0,0.00014247,2]
[407852574,1772836241158,-500.0,0.00014247,2]
[407852575,1772836241169,-500.0,0.00014247,2]
[407852576,1772836241179,-1000.0,0.00014247,2]
[407852577,1772836241189,-1000.0,0.00014247,2]
[407852578,1772836241199,-1000.0,0.00014247,2]
[407852579,1772836241210,-500.0,0.00014247,2]
[407852580,1772836241219,-1000.0,0.00014247,2]
[407852581,1772836241231,-1000.0,0.00014247,2]
[407852582,1772836241241,-1000.0,0.00014247,2]
[407852583,1772836241251,-949.5306254,0.00014247,2]
[407852584,1772836241262,-1000.0,0.00014247,2]
[407852585,1772836241272,-1030.88059829,0.00014247,2]
[407852586,1772836241283,-576.12,0.00014326,2]
[407852587,1772836241294,-255.0,0.00014338,2]
[407852588,1772836241304,-500.0,0.00014343,2]
[407852589,1772836241321,-500.0,0.00014368,2]
[407852590,1772836241332,-1501.33101077,0.00014368,2]
[407852591,1772836241342,-1500.0,0.00014368,2]
[407852592,1772836241353,-200.0,0.00014418,2]
[407852593,1772836241366,-1500.0,0.00014468,2]
[407852594,1772836241378,-1500.0,0.00014468,2]
[407852595,1772836241388,-500.43471003,0.00014468,2]
[407852596,1772836241400,-1500.0,0.00014468,2]
[407852597,1772836241412,-311.2601902,0.00014568,2]
[407852598,1772836241424,-576.17434397,0.000146,2]
[407852599,1772836241435,-500.0,0.00014625,2]
[407852600,1772836241446,-151.0,0.00014634,2]
[407852601,1772836241456,-151.0,0.00014634,2]
[407852602,1772836241468,-11608.74657983,0.00014634,2]
[407852603,1772836241484,-12627.85875546,0.00014704,2]
[407852604,1772836241496,-3816.51,0.00014708,2]
[407852605,1772836241507,-500.0,0.0001479,2]